[Event "Titled Tuesday Blitz June 15 2021"]
[White "Alekseenko, Kirill"]
[Black "Bluebaum, Matthias"]
[WhiteFideId "4135539"]
[BlackFideId "24651516"]
[WhiteElo "2580"]
[BlackElo "2685"]
[Result "1-0"]
[Round "08"]
[TimeControl "180+1"]
[Date "2021.06.15"]
[WhiteClock "0:00:24"]
[BlackClock "0:00:03"]

1. d4 {[%clk 0:03:00]}  Nf6 {[%clk 0:02:59]} 2. Nc3 {[%clk 0:03:01]}  d5 {[%clk 0:02:59]} 3. Bf4 {[%clk 0:03:02]}  c5 {[%clk 0:03:00]} 4. e3 {[%clk 0:03:01]}  cxd4 {[%clk 0:03:00]} 5. exd4 {[%clk 0:03:02]}  a6 {[%clk 0:03:00]} 6. Nf3 {[%clk 0:03:03]}  Nc6 {[%clk 0:03:01]} 7. Ne5 {[%clk 0:03:03]}  Bd7 {[%clk 0:03:01]} 8. Be2 {[%clk 0:03:01]}  e6 {[%clk 0:03:00]} 9. O-O {[%clk 0:03:01]}  Qb6 {[%clk 0:02:59]} 10. Nxc6 {[%clk 0:02:59]}  Bxc6 {[%clk 0:03:00]} 11. Rb1 {[%clk 0:03:00]}  Be7 {[%clk 0:03:00]} 12. Re1 {[%clk 0:03:00]}  O-O {[%clk 0:03:00]} 13. Bd3 {[%clk 0:03:01]}  Bb5 {[%clk 0:02:53]} 14. Nxb5 {[%clk 0:02:57]}  axb5 {[%clk 0:02:54]} 15. a3 {[%clk 0:02:58]}  b4 {[%clk 0:02:54]} 16. axb4 {[%clk 0:02:58]}  Bxb4 {[%clk 0:02:47]} 17. c3 {[%clk 0:02:56]}  Bd6 {[%clk 0:02:48]} 18. Bg5 {[%clk 0:02:55]}  Be7 {[%clk 0:02:48]} 19. h3 {[%clk 0:02:46]}  Ra2 {[%clk 0:02:45]} 20. Qe2 {[%clk 0:02:33]}  Rc8 {[%clk 0:02:40]} 21. Rec1 {[%clk 0:02:24]}  h6 {[%clk 0:02:27]} 22. Bh4 {[%clk 0:02:24]}  Qd8 {[%clk 0:02:09]} 23. Rc2 {[%clk 0:02:16]}  Rca8 {[%clk 0:01:58]} 24. Re1 {[%clk 0:02:14]}  Ra1 {[%clk 0:01:50]} 25. Rcc1 {[%clk 0:02:14]}  Rxc1 {[%clk 0:01:50]} 26. Rxc1 {[%clk 0:02:15]}  Ne8 {[%clk 0:01:16]} 27. Bg3 {[%clk 0:02:13]}  Bd6 {[%clk 0:01:17]} 28. Be5 {[%clk 0:02:13]}  Bxe5 {[%clk 0:01:15]} 29. dxe5 {[%clk 0:02:12]}  Qg5 {[%clk 0:01:12]} 30. Rf1 {[%clk 0:01:58]}  g6 {[%clk 0:01:10]} 31. Kh2 {[%clk 0:01:52]}  Ng7 {[%clk 0:00:53]} 32. f4 {[%clk 0:01:51]}  Qd8 {[%clk 0:00:53]} 33. Qf2 {[%clk 0:01:47]}  h5 {[%clk 0:00:47]} 34. g3 {[%clk 0:01:34]}  Qc7 {[%clk 0:00:43]} 35. Qd4 {[%clk 0:01:25]}  b6 {[%clk 0:00:35]} 36. g4 {[%clk 0:01:19]}  hxg4 {[%clk 0:00:34]} 37. hxg4 {[%clk 0:01:20]}  Qc5 {[%clk 0:00:30]} 38. Rd1 {[%clk 0:01:03]}  Ne8 {[%clk 0:00:29]} 39. f5 {[%clk 0:00:57]}  Qxd4 {[%clk 0:00:28]} 40. cxd4 {[%clk 0:00:57]}  gxf5 {[%clk 0:00:25]} 41. gxf5 {[%clk 0:00:58]}  Kf8 {[%clk 0:00:25]} 42. f6 {[%clk 0:00:54]}  Ra4 {[%clk 0:00:18]} 43. Bh7 {[%clk 0:00:50]}  Nc7 {[%clk 0:00:13]} 44. Rc1 {[%clk 0:00:33]}  Rc4 {[%clk 0:00:12]} 45. Rg1 {[%clk 0:00:34]}  Ke8 {[%clk 0:00:12]} 46. Rg8+ {[%clk 0:00:33]}  Kd7 {[%clk 0:00:13]} 47. Bg6 {[%clk 0:00:26]}  Rxd4 {[%clk 0:00:07]} 48. Bxf7 {[%clk 0:00:27]}  Rf4 {[%clk 0:00:05]} 49. Kg3 {[%clk 0:00:26]}  Rf5 {[%clk 0:00:05]} 50. Bg6 {[%clk 0:00:25]}  Rf1 {[%clk 0:00:03]} 51. f7 {[%clk 0:00:25]}  Ke7 {[%clk 0:00:03]} 52. Re8+ {[%clk 0:00:25]}  Kd7 {[%clk 0:00:04]} 53. f8=Q {[%clk 0:00:23]}  Rxf8 {[%clk 0:00:05]} 54. Rxf8 {[%clk 0:00:24]}  d4 {[%clk 0:00:03]} 1-0


[Site "https://www.chess.com"]

[Event "Titled Tuesday Blitz June 15 2021"]
[White "Annaberdiyev, Babageldi"]
[Black "Siddharth, Jagadeesh"]
[WhiteFideId "14000385"]
[BlackFideId "5818320"]
[WhiteElo "2332"]
[BlackElo "2127"]
[Result "1-0"]
[Round "08"]
[TimeControl "180+1"]
[Date "2021.06.15"]
[WhiteClock "0:00:12"]
[BlackClock "0:00:11"]

1. e4 {[%clk 0:03:00]}  c6 {[%clk 0:02:57]} 2. d4 {[%clk 0:03:00]}  d5 {[%clk 0:02:54]} 3. Nd2 {[%clk 0:03:01]}  dxe4 {[%clk 0:02:53]} 4. Nxe4 {[%clk 0:03:01]}  Nf6 {[%clk 0:02:54]} 5. Nxf6+ {[%clk 0:03:01]}  exf6 {[%clk 0:02:55]} 6. Bc4 {[%clk 0:03:01]}  Bd6 {[%clk 0:02:54]} 7. Qe2+ {[%clk 0:03:01]}  Be7 {[%clk 0:02:51]} 8. Nf3 {[%clk 0:02:59]}  O-O {[%clk 0:02:50]} 9. O-O {[%clk 0:03:00]}  Na6 {[%clk 0:02:48]} 10. h3 {[%clk 0:02:54]}  Nc7 {[%clk 0:02:48]} 11. a4 {[%clk 0:02:49]}  a5 {[%clk 0:02:45]} 12. c3 {[%clk 0:02:50]}  Bd6 {[%clk 0:02:38]} 13. Bd2 {[%clk 0:02:44]}  Re8 {[%clk 0:02:25]} 14. Qd3 {[%clk 0:02:43]}  Be6 {[%clk 0:02:25]} 15. Bxe6 {[%clk 0:02:39]}  Rxe6 {[%clk 0:02:26]} 16. Rad1 {[%clk 0:02:35]}  Qd7 {[%clk 0:02:24]} 17. Rfe1 {[%clk 0:02:29]}  Rae8 {[%clk 0:02:23]} 18. c4 {[%clk 0:02:28]}  Bb4 {[%clk 0:02:19]} 19. Bxb4 {[%clk 0:02:23]}  axb4 {[%clk 0:02:19]} 20. Qd2 {[%clk 0:02:23]}  c5 {[%clk 0:01:44]} 21. d5 {[%clk 0:02:22]}  Rxe1+ {[%clk 0:01:41]} 22. Rxe1 {[%clk 0:02:20]}  Rxe1+ {[%clk 0:01:40]} 23. Qxe1 {[%clk 0:02:16]}  Ne8 {[%clk 0:01:40]} 24. b3 {[%clk 0:02:02]}  Nd6 {[%clk 0:01:36]} 25. Qe3 {[%clk 0:01:59]}  Qc7 {[%clk 0:01:31]} 26. Ne1 {[%clk 0:01:56]}  Kf8 {[%clk 0:00:44]} 27. Nd3 {[%clk 0:01:54]}  b6 {[%clk 0:00:45]} 28. f4 {[%clk 0:01:43]}  Nf5 {[%clk 0:00:41]} 29. Qf2 {[%clk 0:01:35]}  Nd4 {[%clk 0:00:39]} 30. Nxb4 {[%clk 0:01:32]}  Nxb3 {[%clk 0:00:30]} 31. Nc6 {[%clk 0:01:33]}  Na5 {[%clk 0:00:20]} 32. Nxa5 {[%clk 0:01:29]}  bxa5 {[%clk 0:00:21]} 33. Qe3 {[%clk 0:01:15]}  Qb6 {[%clk 0:00:18]} 34. Kh2 {[%clk 0:01:13]}  g6 {[%clk 0:00:17]} 35. Qc3 {[%clk 0:00:44]}  Ke7 {[%clk 0:00:15]} 36. Qe3+ {[%clk 0:00:42]}  Kd7 {[%clk 0:00:15]} 37. Qc3 {[%clk 0:00:39]}  Qb4 {[%clk 0:00:10]} 38. Qxf6 {[%clk 0:00:39]}  Qxc4 {[%clk 0:00:09]} 39. Qxf7+ {[%clk 0:00:37]}  Kd8 {[%clk 0:00:10]} 40. Qg8+ {[%clk 0:00:34]}  Kd7 {[%clk 0:00:10]} 41. Qxh7+ {[%clk 0:00:32]}  Kd8 {[%clk 0:00:08]} 42. Qg8+ {[%clk 0:00:32]}  Kd7 {[%clk 0:00:08]} 43. Qf7+ {[%clk 0:00:29]}  Kd8 {[%clk 0:00:09]} 44. Qf8+ {[%clk 0:00:23]}  Kd7 {[%clk 0:00:09]} 45. d6 {[%clk 0:00:24]}  Qe6 {[%clk 0:00:08]} 46. Qg7+ {[%clk 0:00:17]}  Kxd6 {[%clk 0:00:08]} 47. Qf8+ {[%clk 0:00:16]}  Kc6 {[%clk 0:00:08]} 48. Qa8+ {[%clk 0:00:15]}  Kb6 {[%clk 0:00:08]} 49. Qb8+ {[%clk 0:00:13]}  Kc6 {[%clk 0:00:09]} 50. Qb5+ {[%clk 0:00:13]}  Kd6 {[%clk 0:00:09]} 51. Qxa5 {[%clk 0:00:13]}  Qc4 {[%clk 0:00:10]} 52. Qd8+ {[%clk 0:00:12]}  Ke6 {[%clk 0:00:11]} 53. Qg8+ {[%clk 0:00:12]} 1-0


[Site "https://www.chess.com"]

[Event "Titled Tuesday Blitz June 15 2021"]
[White "Badelka, Olga"]
[Black "Skatchkov, Pavel"]
[WhiteFideId "13509926"]
[BlackFideId "4121848"]
[WhiteElo "2181"]
[BlackElo "2476"]
[Result "0-1"]
[Round "08"]
[TimeControl "180+1"]
[Date "2021.06.15"]
[WhiteClock "0:00:01"]
[BlackClock "0:00:05"]

1. d4 {[%clk 0:03:00]}  Nf6 {[%clk 0:02:59]} 2. c4 {[%clk 0:03:00]}  e6 {[%clk 0:03:00]} 3. Nf3 {[%clk 0:03:00]}  d5 {[%clk 0:02:59]} 4. g3 {[%clk 0:03:00]}  dxc4 {[%clk 0:02:53]} 5. Qa4+ {[%clk 0:02:59]}  Nbd7 {[%clk 0:02:39]} 6. Qxc4 {[%clk 0:02:56]}  a6 {[%clk 0:02:37]} 7. Bg2 {[%clk 0:02:53]}  b5 {[%clk 0:02:37]} 8. Qc2 {[%clk 0:02:53]}  Bb7 {[%clk 0:02:37]} 9. Nc3 {[%clk 0:02:48]}  c5 {[%clk 0:02:36]} 10. O-O {[%clk 0:02:44]}  cxd4 {[%clk 0:02:31]} 11. Nxd4 {[%clk 0:02:44]}  Bxg2 {[%clk 0:02:32]} 12. Kxg2 {[%clk 0:02:44]}  Bc5 {[%clk 0:02:27]} 13. Rd1 {[%clk 0:02:38]}  O-O {[%clk 0:02:26]} 14. Be3 {[%clk 0:02:26]}  Rc8 {[%clk 0:02:24]} 15. Qd2 {[%clk 0:01:59]}  Qb6 {[%clk 0:02:12]} 16. Nb3 {[%clk 0:01:40]}  Bxe3 {[%clk 0:02:09]} 17. Qxe3 {[%clk 0:01:41]}  Qxe3 {[%clk 0:02:09]} 18. fxe3 {[%clk 0:01:41]}  Ne5 {[%clk 0:02:10]} 19. Rd6 {[%clk 0:01:31]}  b4 {[%clk 0:01:58]} 20. Nd1 {[%clk 0:01:28]}  Rc2 {[%clk 0:01:56]} 21. Kf1 {[%clk 0:01:21]}  Nfg4 {[%clk 0:00:40]} 22. h3 {[%clk 0:01:05]}  Nc4 {[%clk 0:00:37]} 23. Rxa6 {[%clk 0:00:50]}  Ngxe3+ {[%clk 0:00:35]} 24. Nxe3 {[%clk 0:00:46]}  Nxe3+ {[%clk 0:00:36]} 25. Kf2 {[%clk 0:00:44]}  Nd5 {[%clk 0:00:37]} 26. a4 {[%clk 0:00:16]}  Rxb2 {[%clk 0:00:35]} 27. Nc1 {[%clk 0:00:16]}  b3 {[%clk 0:00:11]} 28. Rc6 {[%clk 0:00:14]}  Rb8 {[%clk 0:00:11]} 29. a5 {[%clk 0:00:14]}  Rc2 {[%clk 0:00:11]} 30. Rxc2 {[%clk 0:00:04]}  bxc2 {[%clk 0:00:12]} 31. Ra2 {[%clk 0:00:05]}  Rc8 {[%clk 0:00:09]} 32. a6 {[%clk 0:00:04]}  Kf8 {[%clk 0:00:10]} 33. a7 {[%clk 0:00:05]}  Ra8 {[%clk 0:00:10]} 34. Ra4 {[%clk 0:00:03]}  Nb6 {[%clk 0:00:10]} 35. Ra2 {[%clk 0:00:02]}  Nc8 {[%clk 0:00:09]} 36. Rxc2 {[%clk 0:00:02]}  Nxa7 {[%clk 0:00:10]} 37. Ra2 {[%clk 0:00:02]}  Rc8 {[%clk 0:00:10]} 38. Nd3 {[%clk 0:00:03]}  Nb5 {[%clk 0:00:10]} 39. Ra5 {[%clk 0:00:03]}  Nd4 {[%clk 0:00:10]} 40. Ra7 {[%clk 0:00:03]}  Rc2 {[%clk 0:00:08]} 41. Nf4 {[%clk 0:00:03]}  g5 {[%clk 0:00:08]} 42. Ra8+ {[%clk 0:00:03]}  Kg7 {[%clk 0:00:07]} 43. Nd3 {[%clk 0:00:02]}  Rxe2+ {[%clk 0:00:06]} 44. Kf1 {[%clk 0:00:03]}  Rh2 {[%clk 0:00:06]} 45. Ne5 {[%clk 0:00:02]}  Re2 {[%clk 0:00:04]} 46. Nd3 {[%clk 0:00:02]}  Re3 {[%clk 0:00:05]} 47. Nc5 {[%clk 0:00:01]}  Rxg3 {[%clk 0:00:05]} 48. Ra7 {[%clk 0:00:01]}  Rxh3 {[%clk 0:00:05]} 0-1


[Site "https://www.chess.com"]

[Event "Titled Tuesday Blitz June 15 2021"]
[White "Bazarov, Konstantin"]
[Black "Obolentseva, Alexandra"]
[WhiteFideId "4137000"]
[BlackFideId "24153648"]
[WhiteElo "2209"]
[BlackElo "2113"]
[Result "1/2-1/2"]
[Round "08"]
[TimeControl "180+1"]
[Date "2021.06.15"]
[WhiteClock "0:00:26"]
[BlackClock "0:00:54"]

1. Nf3 {[%clk 0:03:00]}  Nf6 {[%clk 0:02:58]} 2. c4 {[%clk 0:03:00]}  g6 {[%clk 0:02:59]} 3. Nc3 {[%clk 0:03:00]}  Bg7 {[%clk 0:02:59]} 4. e4 {[%clk 0:03:00]}  O-O {[%clk 0:02:59]} 5. d4 {[%clk 0:03:01]}  d6 {[%clk 0:02:59]} 6. Be2 {[%clk 0:03:00]}  e5 {[%clk 0:02:59]} 7. d5 {[%clk 0:02:59]}  a5 {[%clk 0:02:58]} 8. h3 {[%clk 0:02:58]}  c6 {[%clk 0:02:55]} 9. Be3 {[%clk 0:02:58]}  cxd5 {[%clk 0:02:55]} 10. cxd5 {[%clk 0:02:57]}  Bd7 {[%clk 0:02:47]} 11. O-O {[%clk 0:02:55]}  b5 {[%clk 0:02:46]} 12. Nd2 {[%clk 0:02:49]}  b4 {[%clk 0:02:44]} 13. Na4 {[%clk 0:02:43]}  Ne8 {[%clk 0:02:21]} 14. Nb6 {[%clk 0:02:41]}  Ra7 {[%clk 0:02:20]} 15. Rc1 {[%clk 0:02:32]}  Rc7 {[%clk 0:02:17]} 16. Qb3 {[%clk 0:02:23]}  Rc8 {[%clk 0:02:11]} 17. Nxc8 {[%clk 0:02:22]}  Bxc8 {[%clk 0:02:10]} 18. Nc4 {[%clk 0:02:18]}  f5 {[%clk 0:02:00]} 19. exf5 {[%clk 0:02:13]}  gxf5 {[%clk 0:01:58]} 20. Bb6 {[%clk 0:02:12]}  Qg5 {[%clk 0:01:55]} 21. f4 {[%clk 0:01:59]}  exf4 {[%clk 0:01:50]} 22. Nxa5 {[%clk 0:01:54]}  Be5 {[%clk 0:01:46]} 23. Rxc8 {[%clk 0:01:50]}  Nd7 {[%clk 0:01:39]} 24. Bf2 {[%clk 0:01:43]}  Kh8 {[%clk 0:01:35]} 25. Bf3 {[%clk 0:01:40]}  Rg8 {[%clk 0:01:31]} 26. Nc6 {[%clk 0:01:33]}  Ndf6 {[%clk 0:01:28]} 27. Re1 {[%clk 0:01:22]}  Ne4 {[%clk 0:01:25]} 28. Bd4 {[%clk 0:00:57]}  Qg3 {[%clk 0:01:15]} 29. Re2 {[%clk 0:00:50]}  Nd2 {[%clk 0:01:01]} 30. Rxd2 {[%clk 0:00:36]}  Qe1+ {[%clk 0:01:00]} 31. Kh2 {[%clk 0:00:35]}  Bxd4 {[%clk 0:00:53]} 32. Nxd4 {[%clk 0:00:29]}  Qg3+ {[%clk 0:00:51]} 33. Kg1 {[%clk 0:00:27]}  Qe1+ {[%clk 0:00:52]} 34. Kh2 {[%clk 0:00:27]}  Qg3+ {[%clk 0:00:53]} 35. Kg1 {[%clk 0:00:26]}  Qe1+ {[%clk 0:00:54]} 36. Kh2 {[%clk 0:00:26]} 1/2-1/2


[Site "https://www.chess.com"]

[Event "Titled Tuesday Blitz June 15 2021"]
[White "Chigaev, Maksim"]
[Black "Oparin, Grigoriy"]
[WhiteFideId "4108116"]
[BlackFideId "24125890"]
[WhiteElo "2646"]
[BlackElo "2628"]
[Result "0-1"]
[Round "08"]
[TimeControl "180+1"]
[Date "2021.06.15"]
[WhiteClock "0:01:41"]
[BlackClock "0:02:16"]

1. e4 {[%clk 0:03:00]}  c5 {[%clk 0:03:00]} 2. Nf3 {[%clk 0:03:00]}  d6 {[%clk 0:03:00]} 3. d4 {[%clk 0:03:00]}  cxd4 {[%clk 0:03:01]} 4. Nxd4 {[%clk 0:03:00]}  Nf6 {[%clk 0:03:02]} 5. Nc3 {[%clk 0:03:01]}  Nc6 {[%clk 0:03:02]} 6. Bg5 {[%clk 0:02:57]}  e6 {[%clk 0:03:03]} 7. Qd2 {[%clk 0:02:43]}  a6 {[%clk 0:03:03]} 8. Nxc6 {[%clk 0:02:37]}  bxc6 {[%clk 0:03:02]} 9. Bc4 {[%clk 0:02:37]}  h6 {[%clk 0:03:01]} 10. Bf4 {[%clk 0:02:32]}  d5 {[%clk 0:02:59]} 11. Bb3 {[%clk 0:02:14]}  Be7 {[%clk 0:02:59]} 12. O-O-O {[%clk 0:02:09]}  a5 {[%clk 0:02:38]} 13. f3 {[%clk 0:02:05]}  O-O {[%clk 0:02:29]} 14. h4 {[%clk 0:02:02]}  Nd7 {[%clk 0:02:28]} 15. Bxh6 {[%clk 0:01:54]}  gxh6 {[%clk 0:02:27]} 16. Qxh6 {[%clk 0:01:55]}  Bf6 {[%clk 0:02:16]} 17. Rh3 {[%clk 0:01:48]}  Bg7 {[%clk 0:02:16]} 18. Rg3 {[%clk 0:01:45]}  Qf6 {[%clk 0:02:17]} 19. Qh5 {[%clk 0:01:41]}  Qf4+ {[%clk 0:02:16]} 0-1


[Site "https://www.chess.com"]

[Event "Titled Tuesday Blitz June 15 2021"]
[White "Colas, Joshua"]
[Black "Abdusattorov, Nodirbek"]
[WhiteFideId "2044447"]
[BlackFideId "14204118"]
[WhiteElo "2347"]
[BlackElo "2662"]
[Result "1-0"]
[Round "08"]
[TimeControl "180+1"]
[Date "2021.06.15"]
[WhiteClock "0:00:04"]
[BlackClock "0:00:02"]

1. Nf3 {[%clk 0:03:00]}  Nf6 {[%clk 0:02:59]} 2. c4 {[%clk 0:03:01]}  c5 {[%clk 0:02:59]} 3. b3 {[%clk 0:03:01]}  g6 {[%clk 0:02:57]} 4. Bb2 {[%clk 0:03:01]}  Bg7 {[%clk 0:02:57]} 5. g3 {[%clk 0:03:02]}  O-O {[%clk 0:02:57]} 6. Bg2 {[%clk 0:03:02]}  d6 {[%clk 0:02:55]} 7. d4 {[%clk 0:02:58]}  Ne4 {[%clk 0:02:50]} 8. O-O {[%clk 0:02:54]}  Nc6 {[%clk 0:02:49]} 9. Nbd2 {[%clk 0:02:51]}  Bf5 {[%clk 0:02:47]} 10. e3 {[%clk 0:02:46]}  Qa5 {[%clk 0:02:43]} 11. Nxe4 {[%clk 0:02:31]}  Bxe4 {[%clk 0:02:44]} 12. Qe2 {[%clk 0:02:29]}  Bxf3 {[%clk 0:02:27]} 13. Bxf3 {[%clk 0:02:27]}  cxd4 {[%clk 0:02:28]} 14. exd4 {[%clk 0:02:11]}  Bxd4 {[%clk 0:02:24]} 15. Bxc6 {[%clk 0:02:10]}  Bxb2 {[%clk 0:02:23]} 16. Bxb7 {[%clk 0:02:10]}  Bxa1 {[%clk 0:02:16]} 17. Bxa8 {[%clk 0:02:09]}  Bd4 {[%clk 0:02:16]} 18. Bg2 {[%clk 0:01:56]}  e6 {[%clk 0:02:16]} 19. h4 {[%clk 0:01:56]}  h5 {[%clk 0:02:16]} 20. Kh2 {[%clk 0:01:56]}  Qc5 {[%clk 0:02:13]} 21. f3 {[%clk 0:01:55]}  a5 {[%clk 0:02:12]} 22. f4 {[%clk 0:01:51]}  Rb8 {[%clk 0:02:11]} 23. Rd1 {[%clk 0:01:48]}  a4 {[%clk 0:02:11]} 24. Qd3 {[%clk 0:01:44]}  axb3 {[%clk 0:02:10]} 25. axb3 {[%clk 0:01:43]}  Bf2 {[%clk 0:02:06]} 26. Qf3 {[%clk 0:01:35]}  Kg7 {[%clk 0:01:52]} 27. Qc3+ {[%clk 0:01:29]}  e5 {[%clk 0:01:50]} 28. fxe5 {[%clk 0:01:18]}  dxe5 {[%clk 0:01:48]} 29. Rd5 {[%clk 0:01:16]}  Bg1+ {[%clk 0:01:48]} 30. Kh1 {[%clk 0:01:15]}  Bd4 {[%clk 0:01:48]} 31. Rxc5 {[%clk 0:01:09]}  Bxc3 {[%clk 0:01:48]} 32. Rb5 {[%clk 0:01:10]}  Rd8 {[%clk 0:01:47]} 33. Rd5 {[%clk 0:01:09]}  Ra8 {[%clk 0:01:47]} 34. Rd7 {[%clk 0:00:55]}  Ra1+ {[%clk 0:01:41]} 35. Kh2 {[%clk 0:00:55]}  Bd4 {[%clk 0:01:11]} 36. Bd5 {[%clk 0:00:54]}  Ra2+ {[%clk 0:01:11]} 37. Kh3 {[%clk 0:00:53]}  Rf2 {[%clk 0:01:06]} 38. b4 {[%clk 0:00:49]}  Kh6 {[%clk 0:01:05]} 39. Rxf7 {[%clk 0:00:48]}  Rb2 {[%clk 0:01:03]} 40. b5 {[%clk 0:00:40]}  Bc5 {[%clk 0:00:50]} 41. Rc7 {[%clk 0:00:36]}  Bb6 {[%clk 0:00:47]} 42. Rc6 {[%clk 0:00:33]}  Bg1 {[%clk 0:00:47]} 43. Bg2 {[%clk 0:00:32]}  e4 {[%clk 0:00:45]} 44. Re6 {[%clk 0:00:26]}  e3 {[%clk 0:00:46]} 45. g4 {[%clk 0:00:19]}  e2 {[%clk 0:00:40]} 46. Bf3 {[%clk 0:00:17]}  e1=Q {[%clk 0:00:20]} 47. Rxe1 {[%clk 0:00:16]}  Bc5 {[%clk 0:00:18]} 48. gxh5 {[%clk 0:00:13]}  Rb3 {[%clk 0:00:15]} 49. Kg2 {[%clk 0:00:11]}  gxh5 {[%clk 0:00:14]} 50. Re6+ {[%clk 0:00:10]}  Kg7 {[%clk 0:00:14]} 51. Re5 {[%clk 0:00:11]}  Bd4 {[%clk 0:00:13]} 52. Rxh5 {[%clk 0:00:11]}  Kf6 {[%clk 0:00:12]} 53. Rd5 {[%clk 0:00:10]}  Be5 {[%clk 0:00:12]} 54. h5 {[%clk 0:00:11]}  Rb2+ {[%clk 0:00:12]} 55. Kf1 {[%clk 0:00:11]}  Bg3 {[%clk 0:00:12]} 56. Be2 {[%clk 0:00:11]}  Bf4 {[%clk 0:00:10]} 57. Bd3 {[%clk 0:00:11]}  Be3 {[%clk 0:00:09]} 58. Ke1 {[%clk 0:00:08]}  Ke6 {[%clk 0:00:08]} 59. Bf5+ {[%clk 0:00:08]}  Kf6 {[%clk 0:00:07]} 60. Bd3 {[%clk 0:00:07]}  Ke6 {[%clk 0:00:07]} 61. Be2 {[%clk 0:00:05]}  Rb1+ {[%clk 0:00:07]} 62. Bd1 {[%clk 0:00:05]}  Rb2 {[%clk 0:00:07]} 63. Bg4+ {[%clk 0:00:04]}  Kf6 {[%clk 0:00:06]} 64. Be2 {[%clk 0:00:03]}  Rb1+ {[%clk 0:00:06]} 65. Bd1 {[%clk 0:00:04]}  Rb2 {[%clk 0:00:07]} 66. h6 {[%clk 0:00:04]}  Bxh6 {[%clk 0:00:07]} 67. Kf1 {[%clk 0:00:05]}  Be3 {[%clk 0:00:06]} 68. Be2 {[%clk 0:00:05]}  Ke6 {[%clk 0:00:05]} 69. Bg4+ {[%clk 0:00:05]}  Kf6 {[%clk 0:00:05]} 70. Be2 {[%clk 0:00:06]}  Ke6 {[%clk 0:00:04]} 71. Bd3 {[%clk 0:00:06]}  Rf2+ {[%clk 0:00:04]} 72. Ke1 {[%clk 0:00:07]}  Rb2 {[%clk 0:00:05]} 73. Kd1 {[%clk 0:00:07]}  Rd2+ {[%clk 0:00:05]} 74. Ke1 {[%clk 0:00:07]}  Rb2 {[%clk 0:00:05]} 75. Bf5+ {[%clk 0:00:06]}  Kf6 {[%clk 0:00:05]} 76. Bd7 {[%clk 0:00:07]}  Ke7 {[%clk 0:00:05]} 77. Bc6 {[%clk 0:00:06]}  Ke6 {[%clk 0:00:05]} 78. Bd7+ {[%clk 0:00:06]}  Kf6 {[%clk 0:00:03]} 79. c5 {[%clk 0:00:05]}  Bf2+ {[%clk 0:00:03]} 80. Kd1 {[%clk 0:00:05]}  Bg3 {[%clk 0:00:04]} 81. c6 {[%clk 0:00:05]}  Bc7 {[%clk 0:00:03]} 82. Kc1 {[%clk 0:00:05]}  Rb4 {[%clk 0:00:03]} 83. Kc2 {[%clk 0:00:05]}  Ke7 {[%clk 0:00:03]} 84. Kc3 {[%clk 0:00:05]}  Ba5 {[%clk 0:00:03]} 85. Kd3 {[%clk 0:00:05]}  Rb3+ {[%clk 0:00:03]} 86. Kc4 {[%clk 0:00:05]}  Rb4+ {[%clk 0:00:04]} 87. Kc5 {[%clk 0:00:05]}  Rb1 {[%clk 0:00:04]} 88. Re5+ {[%clk 0:00:05]}  Kf6 {[%clk 0:00:03]} 89. Re6+ {[%clk 0:00:05]}  Kf7 {[%clk 0:00:03]} 90. Re4 {[%clk 0:00:05]}  Rc1+ {[%clk 0:00:03]} 91. Kd6 {[%clk 0:00:05]}  Bb6 {[%clk 0:00:03]} 92. Re5 {[%clk 0:00:04]}  Rd1+ {[%clk 0:00:02]} 93. Rd5 {[%clk 0:00:04]}  Rc1 {[%clk 0:00:03]} 94. Rf5+ {[%clk 0:00:03]}  Kg7 {[%clk 0:00:03]} 95. Be6 {[%clk 0:00:04]}  Rd1+ {[%clk 0:00:03]} 96. Ke7 {[%clk 0:00:04]}  Bc7 {[%clk 0:00:02]} 97. Rf7+ {[%clk 0:00:02]}  Kg6 {[%clk 0:00:02]} 98. Ke8 {[%clk 0:00:03]}  Bb6 {[%clk 0:00:02]} 99. Rd7 {[%clk 0:00:02]}  Re1 {[%clk 0:00:01]} 100. Re7 {[%clk 0:00:03]}  Kf6 {[%clk 0:00:01]} 101. Rf7+ {[%clk 0:00:01]}  Kxe6 {[%clk 0:00:01]} 102. Re7+ {[%clk 0:00:01]}  Kd5 {[%clk 0:00:02]} 103. Rxe1 {[%clk 0:00:02]}  Kc5 {[%clk 0:00:03]} 104. Rc1+ {[%clk 0:00:02]}  Kd6 {[%clk 0:00:02]} 105. c7 {[%clk 0:00:03]}  Bxc7 {[%clk 0:00:02]} 106. Rc6+ {[%clk 0:00:03]}  Kd5 {[%clk 0:00:02]} 107. Rxc7 {[%clk 0:00:04]} 1-0


[Site "https://www.chess.com"]

[Event "Titled Tuesday Blitz June 15 2021"]
[White "De Silva, L M S T"]
[Black "Golubev, Mikhail"]
[WhiteFideId "9953698"]
[BlackFideId "14100983"]
[WhiteElo "1621"]
[BlackElo "2374"]
[Result "1-0"]
[Round "08"]
[TimeControl "180+1"]
[Date "2021.06.15"]
[WhiteClock "0:00:45"]
[BlackClock "0:00:21"]

1. Nf3 {[%clk 0:03:00]}  d6 {[%clk 0:02:59]} 2. d4 {[%clk 0:02:59]}  Nf6 {[%clk 0:02:59]} 3. b3 {[%clk 0:03:00]}  g6 {[%clk 0:02:56]} 4. Bb2 {[%clk 0:03:00]}  Bg7 {[%clk 0:02:56]} 5. e3 {[%clk 0:03:01]}  O-O {[%clk 0:02:57]} 6. Be2 {[%clk 0:03:02]}  b6 {[%clk 0:02:54]} 7. O-O {[%clk 0:03:03]}  Bb7 {[%clk 0:02:54]} 8. c4 {[%clk 0:03:03]}  Nbd7 {[%clk 0:02:54]} 9. Nc3 {[%clk 0:03:03]}  Re8 {[%clk 0:02:54]} 10. Qc2 {[%clk 0:03:03]}  e5 {[%clk 0:02:54]} 11. dxe5 {[%clk 0:03:03]}  Nxe5 {[%clk 0:02:51]} 12. Nxe5 {[%clk 0:03:03]}  dxe5 {[%clk 0:02:51]} 13. Rad1 {[%clk 0:03:03]}  Qe7 {[%clk 0:02:50]} 14. Nd5 {[%clk 0:03:03]}  Nxd5 {[%clk 0:02:24]} 15. cxd5 {[%clk 0:03:04]}  a6 {[%clk 0:02:15]} 16. e4 {[%clk 0:03:01]}  Bc8 {[%clk 0:01:55]} 17. Rc1 {[%clk 0:02:54]}  Ra7 {[%clk 0:01:55]} 18. Rfd1 {[%clk 0:02:41]}  Rd8 {[%clk 0:01:43]} 19. Qd2 {[%clk 0:02:24]}  c5 {[%clk 0:01:33]} 20. b4 {[%clk 0:02:15]}  cxb4 {[%clk 0:01:28]} 21. Rc6 {[%clk 0:02:16]}  b5 {[%clk 0:01:12]} 22. d6 {[%clk 0:02:06]}  Qe8 {[%clk 0:01:09]} 23. Qc2 {[%clk 0:01:20]}  Rad7 {[%clk 0:01:06]} 24. Rc7 {[%clk 0:01:16]}  Bb7 {[%clk 0:00:54]} 25. Bg4 {[%clk 0:01:08]}  Rxd6 {[%clk 0:00:42]} 26. Rxd6 {[%clk 0:01:05]}  Rxd6 {[%clk 0:00:43]} 27. Rxb7 {[%clk 0:01:03]}  h5 {[%clk 0:00:44]} 28. Bf3 {[%clk 0:01:01]}  Qd8 {[%clk 0:00:40]} 29. Rc7 {[%clk 0:00:55]}  Rd2 {[%clk 0:00:36]} 30. Qc1 {[%clk 0:00:54]}  Kh7 {[%clk 0:00:30]} 31. Rxf7 {[%clk 0:00:50]}  Qd3 {[%clk 0:00:21]} 32. Bxe5 {[%clk 0:00:45]} 1-0


[Site "https://www.chess.com"]